Workbook

Sheet Sparplan
A1: Monat | B1: Eingezahlt | C1: Zinsen (%) | D1: Zinsen (€) | E1: Saldo | G1: Einstellungen
A2: =CHOOSE(MONTH(EDATE($H$2,0)),"Januar","Februar","März","April","Mai","Juni","Juli","August","September","Oktober","November","Dezember") -> Januar | B2: =IF($H$4="","",$H$4) -> € 200.00 | C2: =IF($H$5="","",$H$5/12/100) -> 0.25% | D2: =ROUND(($H$3+B2)*C2,2) -> € 3.00 | E2: =($H$3+B2+D2) -> € 1,203.00 | G2: Startdatum | H2: 2026-01-01
A3: =CHOOSE(MONTH(EDATE($H$2,1)),"Januar","Februar","März","April","Mai","Juni","Juli","August","September","Oktober","November","Dezember") -> Februar | B3: =IF($H$4="","",$H$4) -> € 200.00 | C3: =IF($H$5="","",$H$5/12/100) -> 0.25% | D3: =ROUND((E2+B3)*C3,2) -> € 3.51 | E3: =(E2+B3+D3) -> € 1,406.51 | G3: Startkapital (€) | H3: € 1,000.00
A4: =CHOOSE(MONTH(EDATE($H$2,2)),"Januar","Februar","März","April","Mai","Juni","Juli","August","September","Oktober","November","Dezember") -> März | B4: =IF($H$4="","",$H$4) -> € 200.00 | C4: =IF($H$5="","",$H$5/12/100) -> 0.25% | D4: =ROUND((E3+B4)*C4,2) -> € 4.02 | E4: =(E3+B4+D4) -> € 1,610.53 | G4: Monatliche Einzahlung (€) | H4: € 200.00
A5: =CHOOSE(MONTH(EDATE($H$2,3)),"Januar","Februar","März","April","Mai","Juni","Juli","August","September","Oktober","November","Dezember") -> April | B5: =IF($H$4="","",$H$4) -> € 200.00 | C5: =IF($H$5="","",$H$5/12/100) -> 0.25% | D5: =ROUND((E4+B5)*C5,2) -> € 4.53 | E5: =(E4+B5+D5) -> € 1,815.06 | G5: Jährlicher Zinssatz (%) | H5: 3.00
A6: =CHOOSE(MONTH(EDATE($H$2,4)),"Januar","Februar","März","April","Mai","Juni","Juli","August","September","Oktober","November","Dezember") -> Mai | B6: =IF($H$4="","",$H$4) -> € 200.00 | C6: =IF($H$5="","",$H$5/12/100) -> 0.25% | D6: =ROUND((E5+B6)*C6,2) -> € 5.04 | E6: =(E5+B6+D6) -> € 2,020.10 | G6: Laufzeit (Monate) | H6: 12
A7: =CHOOSE(MONTH(EDATE($H$2,5)),"Januar","Februar","März","April","Mai","Juni","Juli","August","September","Oktober","November","Dezember") -> Juni | B7: =IF($H$4="","",$H$4) -> € 200.00 | C7: =IF($H$5="","",$H$5/12/100) -> 0.25% | D7: =ROUND((E6+B7)*C7,2) -> € 5.55 | E7: =(E6+B7+D7) -> € 2,225.65 | G7: Sparziel (€) (optional) | H7: € 5,000.00
A8: =CHOOSE(MONTH(EDATE($H$2,6)),"Januar","Februar","März","April","Mai","Juni","Juli","August","September","Oktober","November","Dezember") -> Juli | B8: =IF($H$4="","",$H$4) -> € 200.00 | C8: =IF($H$5="","",$H$5/12/100) -> 0.25% | D8: =ROUND((E7+B8)*C8,2) -> € 6.06 | E8: =(E7+B8+D8) -> € 2,431.71 | G8: Übersicht
A9: =CHOOSE(MONTH(EDATE($H$2,7)),"Januar","Februar","März","April","Mai","Juni","Juli","August","September","Oktober","November","Dezember") -> August | B9: =IF($H$4="","",$H$4) -> € 200.00 | C9: =IF($H$5="","",$H$5/12/100) -> 0.25% | D9: =ROUND((E8+B9)*C9,2) -> € 6.58 | E9: =(E8+B9+D9) -> € 2,638.29 | G9: Endsaldo (€) | H9: =E13 -> € 3,469.78
A10: =CHOOSE(MONTH(EDATE($H$2,8)),"Januar","Februar","März","April","Mai","Juni","Juli","August","September","Oktober","November","Dezember") -> September | B10: =IF($H$4="","",$H$4) -> € 200.00 | C10: =IF($H$5="","",$H$5/12/100) -> 0.25% | D10: =ROUND((E9+B10)*C10,2) -> € 7.10 | E10: =(E9+B10+D10) -> € 2,845.39 | G10: Gesamteinzahlungen (€) | H10: =B14 -> € 2,400.00
A11: =CHOOSE(MONTH(EDATE($H$2,9)),"Januar","Februar","März","April","Mai","Juni","Juli","August","September","Oktober","November","Dezember") -> Oktober | B11: =IF($H$4="","",$H$4) -> € 200.00 | C11: =IF($H$5="","",$H$5/12/100) -> 0.25% | D11: =ROUND((E10+B11)*C11,2) -> € 7.61 | E11: =(E10+B11+D11) -> € 3,053.00 | G11: Gesamtzinsen (€) | H11: =D14 -> € 69.78
A12: =CHOOSE(MONTH(EDATE($H$2,10)),"Januar","Februar","März","April","Mai","Juni","Juli","August","September","Oktober","November","Dezember") -> November | B12: =IF($H$4="","",$H$4) -> € 200.00 | C12: =IF($H$5="","",$H$5/12/100) -> 0.25% | D12: =ROUND((E11+B12)*C12,2) -> € 8.13 | E12: =(E11+B12+D12) -> € 3,261.13 | G12: Ziel erreicht? | H12: =IF($H$7="","",IF(H9>=$H$7,"Ja","Nein")) -> Nein
A13: =CHOOSE(MONTH(EDATE($H$2,11)),"Januar","Februar","März","April","Mai","Juni","Juli","August","September","Oktober","November","Dezember") -> Dezember | B13: =IF($H$4="","",$H$4) -> € 200.00 | C13: =IF($H$5="","",$H$5/12/100) -> 0.25% | D13: =ROUND((E12+B13)*C13,2) -> € 8.65 | E13: =(E12+B13+D13) -> € 3,469.78
A14: Gesamt | B14: =SUM(B2:B13) -> € 2,400.00 | D14: =SUM(D2:D13) -> € 69.78 | E14: =E13 -> € 3,469.78
